bitfinex/quotes_BTCUSD_20250623
["timestamp","ask_amount","ask_price","bid_price","bid_amount"]
[1750688331447,0.00018819,102480.0,102470.0,1.53414843]
[1750688331878,0.00018819,102480.0,102470.0,1.53414853]
[1750688332097,0.00018819,102480.0,102470.0,1.54390681]
[1750688332543,0.00018819,102480.0,102470.0,1.55190681]
[1750688332772,0.00018819,102480.0,102470.0,1.33731158]
[1750688332987,0.00018819,102480.0,102470.0,1.0432352]
[1750688333203,0.00018819,102480.0,102470.0,1.62817281]
[1750688333417,0.00018819,102480.0,102470.0,1.61841453]
[1750688333645,0.00018819,102480.0,102470.0,1.62817281]
[1750688333863,0.00018819,102480.0,102470.0,1.61841453]
[1750688334316,0.00018819,102480.0,102470.0,0.52164462]
[1750688334537,0.00018819,102480.0,102470.0,0.91174254]
[1750688334743,0.00018819,102480.0,102470.0,0.70680462]
[1750688335193,0.00018819,102480.0,102470.0,0.9215013]
[1750688335413,0.00018819,102480.0,102470.0,0.70680462]
[1750688335634,0.00018819,102480.0,102470.0,0.32351939]
[1750688335857,0.00018819,102480.0,102470.0,0.29341939]
[1750688336066,0.00018819,102480.0,102470.0,0.30796024]
[1750688336739,0.00018819,102480.0,102470.0,0.30792024]
[1750688337362,0.00018819,102480.0,102470.0,0.19308]
[1750688337868,0.00018819,102480.0,102470.0,0.18508]
[1750688338284,0.00018819,102480.0,102470.0,0.29992024]
[1750688338487,0.00018819,102480.0,102470.0,0.29988024]
[1750688339145,0.00018819,102480.0,102470.0,0.67088024]
[1750688339358,0.00018819,102480.0,102470.0,0.89533501]
[1750688339562,0.00018819,102480.0,102470.0,1.48226843]
[1750688339984,0.00018819,102480.0,102470.0,1.53226843]
[1750688341048,0.00018819,102480.0,102470.0,1.51275158]
[1750688341252,0.00018819,102480.0,102470.0,1.53526843]
[1750688341701,0.00018819,102480.0,102470.0,1.50599273]
[1750688341898,0.00018819,102480.0,102470.0,1.53526853]
[1750688342317,0.00018819,102480.0,102470.0,0.89975931]
[1750688342522,0.00018819,102480.0,102470.0,0.90951826]
[1750688342749,0.00018819,102480.0,102470.0,0.73423711]
[1750688342971,0.00018819,102480.0,102470.0,0.47429939]
[1750688343186,0.00018819,102480.0,102470.0,0.62817939]
[1750688344063,0.00018819,102480.0,102470.0,0.63972024]
[1750688344928,0.00018819,102480.0,102470.0,0.45484024]
[1750688345412,0.00018819,102480.0,102470.0,0.63968024]
[1750688346502,0.00018819,102480.0,102470.0,0.45484024]
[1750688346701,0.00018819,102480.0,102470.0,0.63968024]
[1750688346931,0.00018819,102480.0,102470.0,0.88597692]
[1750688347145,0.00018819,102480.0,102470.0,1.30958719]
[1750688347353,0.00018819,102480.0,102470.0,1.54434719]
[1750688348479,0.00018819,102480.0,102470.0,1.54934719]
[1750688349530,0.0001,102500.0,102490.0,0.04714085]
[1750688349748,0.00918178,102500.0,102490.0,0.33220024]
[1750688350170,0.0001,102500.0,102490.0,1.44308825]
[1750688350427,0.00918755,102500.0,102490.0,1.46653159]
[1750688350641,0.00918755,102500.0,102490.0,0.9298114]
[1750688350845,0.00918736,102500.0,102490.0,0.9298114]
[1750688351056,0.0001,102500.0,102490.0,0.93956778]
[1750688351885,0.0001,102500.0,102490.0,1.04640778]
[1750688352090,0.0001,102500.0,102490.0,1.6026412]
[1750688352511,0.0001,102500.0,102490.0,1.6526412]
[1750688354044,0.0001,102500.0,102490.0,1.6024812]
[1750688354269,0.0001,102500.0,102490.0,1.6554812]
[1750688354468,0.0001,102500.0,102490.0,1.6024812]
[1750688354680,0.0001,102500.0,102490.0,1.6524412]
[1750688354890,0.0001,102500.0,102490.0,1.3700412]
[1750688355107,0.0001,102500.0,102490.0,1.6524412]
[1750688355567,0.0001,102500.0,102490.0,1.6574412]
[1750688355769,0.0001,102500.0,102490.0,1.6074412]
[1750688355978,0.0001,102500.0,102490.0,1.08187366]
[1750688356198,0.00920731,102500.0,102490.0,0.73376024]
[1750688356401,0.00920731,102500.0,102490.0,0.28977939]
[1750688357446,0.00920731,102500.0,102490.0,0.30432024]
[1750688357666,0.00920731,102500.0,102490.0,0.30428024]
[1750688358712,0.00920731,102500.0,102490.0,0.29928024]
[1750688358912,0.0001,102500.0,102490.0,0.29928024]
[1750688359133,0.0001,102500.0,102490.0,0.11484024]
[1750688359393,0.0001,102500.0,102490.0,0.29928024]
[1750688360071,0.0001,102500.0,102490.0,0.63928024]
[1750688360524,0.0001,102500.0,102490.0,0.84417817]
[1750688360821,0.0001,102500.0,102490.0,0.8958915]
[1750688361072,0.0001,102500.0,102490.0,0.86662122]
[1750688361322,0.0001,102500.0,102490.0,0.67148024]
[1750688361569,0.0302,102520.0,102500.0,0.01454085]
[1750688361795,0.03033806,102520.0,102500.0,0.11484024]
[1750688362025,0.03033806,102520.0,102510.0,0.18436]
[1750688362661,0.03233806,102520.0,102510.0,0.18436]
[1750688363091,0.03033806,102520.0,102510.0,0.18436]
[1750688363320,0.03233806,102520.0,102510.0,0.18432]
[1750688364617,0.06353806,102520.0,102510.0,0.18432]
[1750688364823,0.00213806,102520.0,102510.0,0.18432]
[1750688365679,0.00204929,102520.0,102510.0,0.18432]
[1750688366949,0.06634929,102520.0,102500.0,0.11484024]
[1750688367178,0.06634929,102520.0,102510.0,0.18424]
[1750688368498,0.03414929,102520.0,102510.0,0.18424]
[1750688369145,0.06624929,102520.0,102510.0,0.18424]
[1750688371511,0.64507183,102520.0,102510.0,0.18412]
[1750688371961,0.64507183,102520.0,102500.0,0.18412]
[1750688372416,0.52540763,102520.0,102490.0,0.34]
[1750688372632,0.6213642,102510.0,102490.0,0.18408]
[1750688372858,0.6213642,102510.0,102460.0,0.10781226]
[1750688372859,3.0666712,102500.0,102460.0,0.10781226]
[1750688373084,0.6185642,102490.0,102460.0,0.13007429]
[1750688373305,0.0318,102480.0,102460.0,0.31415429]
[1750688373562,0.0318,102480.0,102440.0,0.004]
[1750688373563,0.6185642,102470.0,102440.0,0.004]
[1750688373781,2.445307,102450.0,102440.0,0.004]
[1750688374669,0.6185642,102460.0,102440.0,0.00408876]
[1750688374891,0.0631,102460.0,102440.0,0.00408876]
[1750688375107,0.6118242,102470.0,102440.0,0.18242551]
[1750688375108,2.445307,102470.0,102440.0,0.18242551]
[1750688375319,0.39636,102480.0,102450.0,0.10029939]
[1750688375752,0.05636,102480.0,102450.0,0.10029939]
[1750688376272,2.445307,102480.0,102460.0,0.18404]
[1750688376470,2.445307,102480.0,102450.0,0.13179939]
[1750688376685,2.445307,102480.0,102450.0,0.31583939]
[1750688377116,0.0622,102480.0,102450.0,0.28433939]
[1750688377770,0.0662,102480.0,102450.0,0.28433939]
[1750688378006,0.6216642,102480.0,102460.0,0.184]
[1750688378228,0.6216642,102480.0,102450.0,0.184]
[1750688379097,0.6176642,102480.0,102450.0,0.184]
[1750688379315,0.6200642,102470.0,102440.0,0.34408876]
[1750688379521,0.5554642,102460.0,102440.0,0.62838815]
[1750688379748,0.5857642,102460.0,102440.0,0.18808876]
[1750688379959,0.6170642,102460.0,102440.0,0.00408876]
[1750688381068,0.42005182,102460.0,102440.0,0.00408876]
[1750688381726,0.46045046,102460.0,102440.0,0.00408876]
[1750688381941,0.5554642,102450.0,102440.0,0.00408876]
[1750688382165,0.6205642,102450.0,102440.0,0.00408876]
[1750688382430,0.54840111,102450.0,102440.0,0.00508876]
[1750688382682,3.04854822,102450.0,102440.0,0.00408876]
[1750688382890,0.0651,102440.0,102410.0,0.18392]
[1750688383106,0.54840111,102430.0,102420.0,0.00046085]
[1750688383315,0.0651,102430.0,102420.0,0.00046085]
[1750688383771,0.48330111,102440.0,102420.0,0.00046085]
[1750688383985,0.0648,102440.0,102420.0,0.00046085]
[1750688384217,0.52369579,102460.0,102420.0,0.00046085]
[1750688384431,0.0648,102450.0,102420.0,0.28464024]
[1750688384646,0.54810111,102450.0,102440.0,0.003]
[1750688384862,0.0615,102440.0,102420.0,0.18434085]
[1750688385078,0.54480111,102440.0,102420.0,0.00046085]
[1750688385297,0.54620111,102440.0,102420.0,0.00146085]
[1750688385499,0.0629,102440.0,102420.0,0.00046085]
[1750688385921,0.0629,102440.0,102420.0,0.00346085]
[1750688386125,0.0629,102440.0,102420.0,0.00046085]
[1750688387218,0.0632,102430.0,102420.0,0.00046085]
[1750688387686,0.48330111,102450.0,102420.0,0.00346085]
[1750688387904,2.445307,102440.0,102420.0,0.00346085]
[1750688388343,0.0306,102440.0,102420.0,0.00046085]
[1750688388562,0.5319,102450.0,102420.0,0.10076024]
[1750688388793,0.64459579,102460.0,102420.0,0.13756024]
[1750688389009,2.445307,102450.0,102420.0,0.31736024]
[1750688389219,2.445307,102450.0,102420.0,0.35156024]
[1750688390495,2.445307,102450.0,102420.0,0.35056024]
[1750688390919,0.001,102450.0,102420.0,0.35056024]
[1750688391137,2.445307,102450.0,102420.0,0.35056024]
[1750688391355,2.445307,102450.0,102420.0,0.35156024]
[1750688391999,0.54490111,102450.0,102420.0,0.00146085]
[1750688392216,0.54490111,102450.0,102420.0,0.18522085]
[1750688392429,0.51380111,102450.0,102420.0,0.00146085]
[1750688392664,0.0305,102440.0,102420.0,0.00146085]
[1750688393368,0.0633,102440.0,102420.0,0.00146085]
[1750688393583,0.54660111,102440.0,102420.0,0.00146085]
[1750688393793,0.54660111,102440.0,102420.0,0.00046085]
[1750688394032,2.96150811,102430.0,102420.0,0.00346085]
[1750688394260,0.066,102430.0,102420.0,0.00346085]
[1750688394712,0.0331,102430.0,102420.0,0.00046085]
[1750688394928,2.445307,102430.0,102420.0,0.00046085]
[1750688395143,2.445307,102430.0,102420.0,0.00146085]
[1750688395355,2.445307,102430.0,102420.0,0.00046085]
[1750688395580,2.445307,102430.0,102420.0,0.10076024]
[1750688395800,0.40975668,102460.0,102420.0,0.16716024]
[1750688395801,0.58819579,102460.0,102420.0,0.16716024]
[1750688396017,2.445307,102450.0,102420.0,0.83414135]
[1750688396251,2.445307,102450.0,102420.0,0.35084024]
[1750688396468,2.445307,102450.0,102420.0,0.54611367]
[1750688396685,2.445307,102450.0,102420.0,0.35084024]
[1750688397120,2.445307,102450.0,102420.0,0.54611421]
[1750688397335,2.445307,102450.0,102420.0,0.35084024]
[1750688397969,2.445307,102450.0,102420.0,0.34784024]
[1750688398187,0.48330111,102440.0,102420.0,0.10176024]
[1750688398401,0.48330111,102440.0,102420.0,0.00146085]
[1750688398608,0.51580111,102440.0,102420.0,0.00146085]
[1750688398857,0.54650111,102440.0,102420.0,0.00146085]
[1750688399085,0.54530111,102450.0,102420.0,0.10076024]
[1750688399292,0.0564,102450.0,102420.0,0.16706024]
[1750688399502,2.445307,102450.0,102420.0,0.16706024]
[1750688400379,0.82565579,102460.0,102430.0,0.10029939]
[1750688400599,0.64209579,102460.0,102430.0,0.10029939]
[1750688400827,2.445307,102460.0,102430.0,0.16349939]
[1750688401044,0.54510111,102460.0,102430.0,0.10029939]
[1750688401255,0.88510111,102460.0,102430.0,0.09529939]
[1750688402379,0.4018,102460.0,102430.0,0.09529939]
[1750688402597,0.82430111,102460.0,102430.0,0.16119939]
[1750688403046,0.92795576,102460.0,102430.0,0.09529939]
[1750688403272,0.88207885,102460.0,102430.0,0.09529939]
[1750688403501,0.36637774,102460.0,102430.0,0.15809939]
[1750688403724,0.36637774,102460.0,102430.0,0.09529939]
[1750688403725,0.84967885,102460.0,102430.0,0.09529939]
[1750688403939,0.91247885,102460.0,102430.0,0.09529939]
[1750688405247,0.95256494,102460.0,102430.0,0.09529939]
[1750688405722,0.92016494,102460.0,102430.0,0.15619939]
[1750688405928,0.95326494,102460.0,102430.0,0.15619939]
[1750688406566,0.88976494,102460.0,102430.0,0.15619939]
[1750688408748,0.50967885,102460.0,102430.0,0.15619939]
[1750688408955,0.50967885,102460.0,102440.0,0.07564085]
[1750688408956,0.003,102460.0,102440.0,0.07564085]
[1750688409167,0.003,102460.0,102440.0,0.17594024]
[1750688409810,0.001,102460.0,102450.0,0.17794024]
[1750688410032,0.001,102460.0,102420.0,0.19573438]
[1750688410243,0.001,102460.0,102440.0,0.21542]
[1750688410458,0.48730111,102470.0,102440.0,0.34661939]
[1750688410675,0.02741025,102470.0,102450.0,0.031]
[1750688410896,0.004,102470.0,102450.0,0.031]
[1750688411113,0.004,102470.0,102450.0,0.16379939]
[1750688412247,0.004,102470.0,102450.0,0.16479939]
[1750688415713,0.004,102470.0,102450.0,0.13379939]
[1750688415936,0.004,102470.0,102460.0,0.0301]
[1750688416599,0.004,102470.0,102450.0,0.13379939]
[1750688416835,0.48730111,102470.0,102450.0,0.28341939]
[1750688417350,0.004,102470.0,102450.0,0.28355758]
[1750688417565,0.004,102470.0,102460.0,0.001]
[1750688417790,0.004,102470.0,102450.0,0.28355758]
[1750688418234,0.004,102470.0,102450.0,0.28455758]
[1750688418458,0.004,102470.0,102450.0,0.31555758]
[1750688418717,0.004,102470.0,102460.0,0.001]
[1750688419398,0.004,102470.0,102460.0,0.032]
[1750688420066,0.004,102470.0,102460.0,0.031]
[1750688420946,0.004,102470.0,102460.0,0.001]
[1750688422594,2.93260811,102470.0,102460.0,0.001]
[1750688422813,3.0970075,102470.0,102460.0,0.001]
[1750688423036,2.99670811,102470.0,102460.0,0.001]
[1750688425471,2.449307,102470.0,102460.0,0.001]
[1750688425694,0.004,102470.0,102460.0,0.001]
[1750688425927,0.004,102470.0,102460.0,0.13359939]
[1750688426154,0.004,102470.0,102460.0,0.16509939]
[1750688426870,0.004,102470.0,102460.0,0.10129939]
[1750688427382,0.004,102470.0,102460.0,0.18384]
[1750688428011,0.48730111,102470.0,102460.0,0.18384]
[1750688428414,0.48730111,102470.0,102460.0,0.001]
[1750688428779,0.004,102470.0,102460.0,0.001]
[1750688430015,0.504,102470.0,102460.0,0.001]
[1750688430240,0.004,102470.0,102460.0,0.001]
[1750688430913,0.004,102470.0,102460.0,0.0316]
[1750688432185,0.004,102470.0,102460.0,0.0645]
[1750688433113,0.004,102470.0,102460.0,1.4000388]
[1750688433332,0.004,102470.0,102460.0,1.40979803]
[1750688433571,0.004,102470.0,102460.0,1.39027918]
[1750688433810,0.004,102470.0,102460.0,1.40979784]
[1750688434680,0.004,102470.0,102460.0,1.40879784]
[1750688434894,0.004,102470.0,102460.0,1.45879784]
[1750688435962,0.004,102470.0,102460.0,0.97549673]
[1750688436177,0.004,102470.0,102460.0,1.45879784]
[1750688436396,0.004,102470.0,102460.0,1.46379784]
[1750688436635,0.004,102470.0,102460.0,1.46479784]
[1750688437084,0.004,102470.0,102460.0,1.47379784]
[1750688438402,0.004,102470.0,102460.0,1.22159937]
[1750688438660,0.004,102470.0,102460.0,0.11529939]
[1750688438902,0.004,102470.0,102460.0,0.29781939]
[1750688439124,0.004,102470.0,102460.0,0.29777939]
[1750688439597,0.004,102470.0,102460.0,0.29177939]
[1750688439813,0.004,102470.0,102460.0,0.28273939]
[1750688440045,0.004,102470.0,102460.0,0.28573939]
[1750688440943,0.004,102470.0,102460.0,0.29073939]
[1750688441966,0.004,102470.0,102460.0,0.30528024]
[1750688442214,0.004,102470.0,102460.0,0.37098024]
[1750688442954,0.004,102470.0,102460.0,0.30528024]
[1750688444213,0.004,102470.0,102460.0,0.36868024]
[1750688444449,0.004,102470.0,102460.0,0.30528024]
[1750688445179,0.004,102470.0,102460.0,0.33738024]
[1750688446167,0.004,102470.0,102460.0,0.29073939]
[1750688447142,0.004,102470.0,102460.0,0.30528024]
[1750688447373,0.004,102470.0,102460.0,0.36868024]
[1750688448073,0.004,102470.0,102460.0,0.90387836]
[1750688448305,0.004,102470.0,102460.0,1.39693937]
[1750688448526,0.004,102470.0,102460.0,1.40669918]
[1750688448738,0.004,102470.0,102460.0,1.39693937]
[1750688448972,0.004,102470.0,102460.0,0.70868024]
[1750688449194,0.004,102470.0,102460.0,0.52624024]
[1750688449406,0.004,102470.0,102460.0,0.70848024]
[1750688449863,0.004,102470.0,102460.0,0.90367836]
[1750688450074,0.004,102470.0,102460.0,1.40649918]
[1750688450292,0.004,102470.0,102460.0,1.38697947]
[1750688450526,0.004,102470.0,102460.0,0.70848024]
[1750688450745,0.004,102470.0,102460.0,0.64508024]
[1750688451196,0.004,102470.0,102460.0,0.64504024]
[1750688452548,0.004,102470.0,102460.0,1.41607851]
[1750688452759,0.004,102470.0,102460.0,1.40631899]
[1750688453229,0.004,102470.0,102460.0,1.40631918]
[1750688453445,0.004,102470.0,102460.0,0.92301807]
[1750688453861,0.004,102470.0,102460.0,1.40631918]
[1750688454735,0.004,102470.0,102460.0,1.41607889]
[1750688454943,0.004,102470.0,102460.0,1.40631918]
[1750688455166,0.004,102470.0,102460.0,1.19160135]
[1750688455372,0.004,102470.0,102460.0,0.64488024]
[1750688455579,0.004,102470.0,102460.0,0.44829939]
[1750688455841,0.004,102470.0,102460.0,0.63029939]
[1750688457394,0.55020111,102470.0,102460.0,0.008]
[1750688457621,3.39053822,102470.0,102460.0,0.008]
[1750688458587,3.33550811,102470.0,102460.0,0.005]
[1750688458818,0.0669,102470.0,102450.0,0.00013819]
[1750688459025,0.504,102470.0,102460.0,0.18192]
[1750688459236,0.504,102470.0,102460.0,0.28221939]
[1750688459689,0.004,102470.0,102460.0,0.28221939]
[1750688460338,0.004,102470.0,102460.0,0.28521939]
[1750688461193,0.004,102470.0,102460.0,0.003]
[1750688461418,0.0643,102470.0,102460.0,0.18488]
[1750688461857,0.54760111,102470.0,102460.0,0.18488]
[1750688462083,0.54760111,102470.0,102460.0,0.18588]
[1750688462314,0.0643,102470.0,102460.0,0.18588]
[1750688462543,0.0643,102470.0,102460.0,0.00236]
[1750688462763,0.54760111,102470.0,102460.0,0.00236]
[1750688463410,2.99290811,102470.0,102460.0,0.00236]
[1750688463685,2.99290811,102470.0,102460.0,0.001]
[1750688463907,0.0643,102470.0,102460.0,0.001]
[1750688464138,0.004,102470.0,102450.0,0.18197819]
[1750688464564,0.0351,102470.0,102450.0,0.18197819]
[1750688464987,0.504,102470.0,102450.0,0.18197819]
[1750688465215,0.004,102470.0,102450.0,0.18197819]
[1750688466079,0.504,102470.0,102460.0,0.10029939]
[1750688466301,0.004,102470.0,102460.0,0.10029939]
[1750688467612,0.004,102470.0,102460.0,0.001]
[1750688467847,0.004,102470.0,102460.0,0.18272]
[1750688468493,0.004,102470.0,102460.0,0.18472]
[1750688468718,0.55000111,102470.0,102460.0,0.003]
[1750688469153,0.60501122,102470.0,102460.0,0.003]
[1750688469582,0.54000111,102470.0,102460.0,0.003]
[1750688470235,0.54000111,102470.0,102450.0,0.00013819]
[1750688470671,0.50920111,102470.0,102450.0,0.00013819]
[1750688470896,0.53990111,102470.0,102450.0,0.00013819]
[1750688471100,0.0325,102460.0,102450.0,0.00013819]
[1750688471581,0.51580111,102460.0,102450.0,0.00013819]
[1750688472033,0.33145332,102460.0,102450.0,0.00013819]
[1750688472242,0.50920111,102470.0,102450.0,0.00013819]
[1750688472457,2.445307,102460.0,102450.0,0.00013819]
[1750688472874,2.445307,102460.0,102450.0,0.00213819]
[1750688473089,2.445307,102460.0,102450.0,0.00013819]
[1750688473902,0.50920111,102470.0,102450.0,0.00113819]
[1750688474807,0.50920111,102470.0,102450.0,0.00013819]
[1750688475019,0.54140111,102470.0,102450.0,0.00213819]
[1750688475447,3.33300811,102460.0,102450.0,0.00213819]
[1750688475958,0.48330111,102430.0,102410.0,0.18148]
[1750688476207,0.48330111,102430.0,102400.0,0.3747]
[1750688476208,0.0332,102430.0,102400.0,0.3747]
[1750688476463,0.51370111,102450.0,102420.0,0.07803736]
[1750688476674,0.51370111,102450.0,102410.0,0.34497939]
[1750688476675,2.92860811,102440.0,102410.0,0.34497939]
[1750688476905,0.48330111,102440.0,102410.0,0.42301675]
[1750688477149,0.0607,102450.0,102410.0,0.29141736]
[1750688477150,0.48330111,102430.0,102410.0,0.29141736]
[1750688477364,0.48330111,102430.0,102410.0,0.18148]
[1750688478265,0.03316995,102430.0,102410.0,0.18148]
[1750688478480,0.03316995,102430.0,102410.0,0.21168]
[1750688478706,2.445307,102440.0,102410.0,0.31197939]
[1750688479003,2.445307,102450.0,102420.0,0.16359939]
[1750688479429,0.51510111,102450.0,102420.0,0.13049939]
[1750688480279,0.48630111,102450.0,102420.0,0.16319939]
[1750688480493,0.03633857,102450.0,102430.0,0.0323]
[1750688480709,0.004,102450.0,102430.0,0.7965005]
[1750688480941,0.004,102450.0,102440.0,0.0323]
[1750688481362,0.003,102450.0,102440.0,0.0323]
[1750688481568,0.50108971,102460.0,102440.0,0.0323]
[1750688481790,0.003,102450.0,102440.0,0.0323]
[1750688482008,0.001,102450.0,102440.0,0.0323]
[1750688482235,0.001,102450.0,102430.0,0.34419939]
[1750688482461,0.48430111,102450.0,102440.0,0.002]
[1750688482908,0.59920477,102450.0,102440.0,0.002]
[1750688483135,0.58236569,102450.0,102420.0,0.21252]
[1750688483356,0.58236569,102450.0,102410.0,0.14043736]
[1750688483571,0.48330111,102440.0,102430.0,0.002]
[1750688484658,0.58136569,102450.0,102430.0,0.002]
[1750688484896,0.48330111,102440.0,102410.0,0.42205675]
[1750688485122,0.48330111,102430.0,102410.0,0.18124]
[1750688485366,0.48330111,102430.0,102400.0,0.3772]
[1750688485592,0.51390111,102430.0,102410.0,0.18124]
[1750688486042,0.54660111,102430.0,102400.0,0.0372]
[1750688486271,0.51440111,102420.0,102410.0,0.004]
[1750688486484,2.98970811,102420.0,102410.0,0.004]
[1750688486737,2.98970811,102420.0,102400.0,0.0042]
[1750688486738,2.445307,102410.0,102400.0,0.0042]
[1750688486981,0.0311,102420.0,102400.0,0.0042]
[1750688487201,2.445307,102430.0,102410.0,0.0331]
[1750688487647,0.51429079,102430.0,102400.0,0.0372]
[1750688487863,0.54569079,102430.0,102410.0,0.002]
[1750688488082,0.48330111,102420.0,102410.0,0.002]
[1750688488296,0.48330111,102420.0,102400.0,0.0042]
[1750688488505,0.54569079,102430.0,102400.0,0.0042]
[1750688489147,0.51330111,102420.0,102400.0,0.0042]
[1750688489833,0.51330111,102420.0,102400.0,0.0062]
[1750688490050,0.51330111,102420.0,102410.0,0.002]
[1750688490487,1.01330111,102420.0,102400.0,0.0062]
[1750688490694,0.51639079,102430.0,102400.0,0.0392]
[1750688490926,2.445307,102420.0,102400.0,0.0707]
[1750688491137,2.445307,102420.0,102400.0,0.0392]
[1750688491364,0.51639079,102430.0,102400.0,0.0724]
[1750688491636,8.968e-05,102430.0,102410.0,0.0303]
[1750688491865,2.945307,102440.0,102420.0,0.0303]
[1750688492091,2.445307,102440.0,102430.0,0.0321]
[1750688492304,0.03356458,102450.0,102430.0,0.0321]
[1750688492731,2.445307,102450.0,102430.0,0.0321]
[1750688492951,0.03,102450.0,102420.0,0.16276024]
[1750688493166,0.51330111,102450.0,102420.0,0.16276024]
[1750688493381,0.51330111,102450.0,102420.0,0.00046085]
[1750688493382,0.51440111,102440.0,102420.0,0.00046085]
[1750688494217,0.48330111,102430.0,102420.0,0.00046085]
[1750688495586,0.51350111,102430.0,102420.0,0.00046085]
[1750688495808,2.508107,102430.0,102420.0,0.00046085]
[1750688496031,3.33140811,102430.0,102420.0,0.00046085]
[1750688496684,3.36077511,102430.0,102420.0,0.00046085]
[1750688497333,3.33140811,102430.0,102420.0,0.00046085]
[1750688497756,2.445307,102430.0,102420.0,0.00046085]
[1750688498897,2.445307,102430.0,102420.0,0.03106085]
[1750688499115,2.445307,102440.0,102420.0,0.16426024]
[1750688499332,2.445307,102450.0,102430.0,0.0308]
[1750688499552,2.445307,102450.0,102430.0,0.0637]
[1750688502740,2.445307,102450.0,102430.0,0.0308]
[1750688503385,2.92860811,102450.0,102420.0,0.13096024]
[1750688503598,0.48330111,102450.0,102420.0,0.13096024]
[1750688503811,2.445307,102450.0,102430.0,0.0302]
[1750688506208,2.445307,102450.0,102420.0,0.16376024]
[1750688507088,2.445307,102450.0,102430.0,0.0312]
[1750688507312,0.39874327,102460.0,102440.0,0.0312]
[1750688507531,2.945307,102470.0,102450.0,0.0328]
[1750688507767,0.029452,102480.0,102460.0,0.0328]
[1750688508014,0.5001,102480.0,102470.0,0.0312]
[1750688508449,0.0001,102480.0,102470.0,0.0312]
[1750688508651,0.0001,102480.0,102470.0,0.0292]
[1750688509097,0.48353593,102480.0,102460.0,0.18064]
[1750688509321,0.48353593,102480.0,102450.0,0.2119]
[1750688509562,0.48353593,102480.0,102450.0,0.31219939]
[1750688510430,0.00023482,102480.0,102450.0,0.31219939]
[1750688511382,0.48353593,102480.0,102470.0,0.001]
[1750688511640,2.99064293,102480.0,102470.0,0.001]
[1750688511850,2.445307,102470.0,102460.0,0.18052]
[1750688512068,2.445307,102470.0,102450.0,0.002]
[1750688512287,2.445307,102470.0,102440.0,0.60534]
[1750688512501,2.445307,102470.0,102440.0,0.50209939]
[1750688512917,2.92860811,102470.0,102440.0,0.47079939]
[1750688513166,2.92860811,102470.0,102440.0,0.18048]
[1750688513167,0.54590111,102470.0,102440.0,0.18048]
[1750688513411,0.51460111,102460.0,102430.0,0.0307]
[1750688513698,0.54460111,102460.0,102430.0,0.21114]
[1750688514625,0.54460111,102460.0,102450.0,0.001]
[1750688514832,2.98990811,102460.0,102450.0,0.001]
[1750688515077,2.98990811,102460.0,102420.0,0.34]
[1750688515324,3.46180811,102430.0,102400.0,0.0362]
[1750688515573,2.92860811,102410.0,102400.0,0.0042]
[1750688515802,2.445307,102410.0,102400.0,0.0042]
[1750688516916,2.445307,102410.0,102400.0,0.00466085]
[1750688517624,0.02937,102420.0,102400.0,0.03766085]
[1750688517863,0.02937,102420.0,102400.0,0.03866085]
[1750688518092,5e-05,102410.0,102400.0,0.17096024]
[1750688518522,5e-05,102410.0,102400.0,0.03716085]
[1750688518739,5e-05,102410.0,102400.0,0.00466085]
[1750688519835,5e-05,102410.0,102400.0,0.03486085]
[1750688520463,5e-05,102410.0,102400.0,0.00566085]
[1750688522957,0.48335111,102410.0,102400.0,0.00566085]
[1750688523184,0.56378622,102410.0,102400.0,0.00566085]
[1750688523434,0.51545111,102410.0,102400.0,0.00566085]
[1750688524099,1.01545111,102410.0,102400.0,0.00566085]
[1750688524321,2.477457,102410.0,102400.0,0.00466085]
[1750688524547,2.446357,102410.0,102400.0,0.00466085]
[1750688524766,0.00205,102410.0,102400.0,0.00466085]
[1750688524988,0.00205,102410.0,102400.0,0.03576085]
[1750688525211,0.00205,102410.0,102400.0,0.55176196]
[1750688525439,0.00205,102410.0,102400.0,0.06846085]
[1750688525660,0.00105,102410.0,102400.0,0.06846085]
[1750688526121,0.00105,102410.0,102400.0,0.00466085]
[1750688527230,5e-05,102410.0,102400.0,0.00466085]
[1750688527664,5e-05,102410.0,102400.0,0.00566085]
[1750688527873,5e-05,102410.0,102400.0,0.03886085]
[1750688528313,5e-05,102410.0,102400.0,0.00766085]
[1750688528751,0.03175,102410.0,102400.0,0.00566085]
[1750688529402,5e-05,102410.0,102400.0,0.00566085]
[1750688531045,2.476257,102410.0,102400.0,0.00566085]
[1750688531480,2.95955811,102410.0,102400.0,0.01352565]
[1750688531720,2.476257,102410.0,102400.0,0.01352565]
[1750688532145,2.476257,102410.0,102400.0,0.01351825]
[1750688532580,2.476257,102410.0,102400.0,0.00454085]
[1750688533235,2.95955811,102410.0,102400.0,0.00454085]
[1750688533462,2.509357,102410.0,102400.0,0.00454085]
[1750688533701,2.98893011,102410.0,102400.0,0.00454085]
[1750688534125,2.95955811,102410.0,102400.0,0.00454085]
[1750688534343,2.476257,102410.0,102400.0,0.00454085]
[1750688534556,2.476257,102410.0,102400.0,0.00354085]
[1750688534557,2.95955811,102410.0,102400.0,0.00354085]
[1750688534778,2.96155811,102410.0,102400.0,0.00354085]
[1750688535867,3.38743383,102410.0,102400.0,0.00354085]
[1750688536082,3.44123383,102410.0,102400.0,0.00354085]
[1750688536552,3.38785811,102410.0,102400.0,0.00354085]
[1750688538565,0.34205,102410.0,102400.0,0.00354085]
[1750688538778,0.00205,102410.0,102400.0,0.00354085]
[1750688541789,3.33605811,102410.0,102400.0,0.00354085]
[1750688542024,3.33605811,102410.0,102400.0,0.01254879]
[1750688542246,2.850707,102390.0,102380.0,0.0002]
[1750688542472,3.33400811,102390.0,102380.0,0.00930125]
[1750688542696,3.33400811,102390.0,102380.0,0.00028968]
[1750688543798,3.33820811,102390.0,102380.0,0.00028968]
[1750688544023,3.33920811,102390.0,102380.0,0.00028968]
[1750688544243,3.41938934,102390.0,102380.0,0.00028968]
[1750688544470,3.5479792,102390.0,102380.0,0.00028968]
[1750688544698,3.57136092,102390.0,102380.0,0.00028968]
[1750688545135,3.57136092,102390.0,102360.0,0.0042]
[1750688545136,2.849307,102370.0,102360.0,0.0042]
[1750688545436,2.445307,102350.0,102340.0,0.0002]
[1750688545655,2.92860811,102350.0,102340.0,0.00936513]